fUST/lending_fUST_20250827
["ID","MTS","AMOUNT","RATE_DAILY","PERIOD"]
[381565317,1756284668608,-196.483441,0.00023625,7]
[381565318,1756284668619,-568.95,0.00023713,2]
[381565319,1756284668629,-196.483441,0.00023714,7]
[381565320,1756284668639,-196.483441,0.00023714,7]
[381565321,1756284668650,-196.483441,0.0002389,7]
[381565322,1756284668659,-196.483441,0.0002389,7]
[381565323,1756284668670,-568.95,0.00023987,2]
[381565324,1756284668680,-568.95,0.00024261,2]
[381565325,1756284668690,-568.95,0.00024535,2]
[381565326,1756284668700,-524.38,0.00024537,2]
[381565327,1756284668710,-1170.95,0.00024809,2]
[381565328,1756284668719,-568.95,0.00024809,2]
[381565329,1756284668728,-524.38,0.00024811,2]
[381565330,1756284668738,-1090.31459263,0.00025083,2]
[381565331,1756284668748,-1042.63,0.00025083,2]
[381565332,1756284668758,-480.0,0.00025083,2]
[381565333,1756284668767,-628.82486259,0.00025083,2]
[381565334,1756284668779,-16.68513741,0.00025083,2]
[381565335,1756284668788,-866.58375987,0.00025083,2]
[381565336,1756284668805,-72.59624013,0.00025083,2]
[381565337,1756284668814,-586.69448127,0.00025083,2]
[381565338,1756284669725,-196.483441,0.0002344,7]
[381565339,1756284669736,-196.483441,0.00023625,7]
[381565340,1756284669745,-196.483441,0.00023714,7]
[381565341,1756284669754,-196.483441,0.0002389,7]
[381565342,1756284669763,-196.483441,0.0002389,7]
[381565343,1756284669774,-196.483441,0.0002389,7]
[381565344,1756284669785,-196.483441,0.0002389,7]
[381565345,1756284669795,-211.46818675,0.00023989,2]
[381565346,1756284669807,-327.48181325,0.00023989,2]
[381565347,1756284669816,-526.4401434,0.00023989,2]
[381565348,1756284669828,-301.3298566,0.00023989,2]
[381565349,1756284669837,-164.46675192,0.00024263,2]
[381565350,1756284670694,5000.0,0.00023,2]
[381565352,1756284681531,5000.0,0.00023,2]
[381565353,1756284698079,5000.0,0.00023,2]
[381565356,1756284710667,-480.0,0.00023164,2]
[381565357,1756284710694,-480.98182289,0.00023164,2]
[381565358,1756284710722,-500.0,0.00023164,2]
[381565359,1756284710751,-500.0,0.00023164,2]
[381565360,1756284710780,-227.19290993,0.00023164,2]
[381565361,1756284710809,-500.0,0.00023164,2]
[381565362,1756284710839,-500.0,0.00023164,2]
[381565363,1756284710868,-500.0,0.00023164,2]
[381565364,1756284710896,-184.83564356,0.00023164,2]
[381565365,1756284710924,-500.0,0.00023164,2]
[381565366,1756284710953,-500.0,0.00023164,2]
[381565369,1756284711565,-500.0,0.00023164,2]
[381565371,1756284711594,-500.0,0.00023164,2]
[381565372,1756284711623,-500.0,0.00023164,2]
[381565373,1756284711652,-248.01100394,0.00023164,2]
[381565374,1756284711680,-500.0,0.00023164,2]
[381565375,1756284711710,-500.0,0.00023164,2]
[381565376,1756284711740,-500.0,0.00023164,2]
[381565377,1756284711768,-500.0,0.00023164,2]
[381565378,1756284711796,-500.0,0.00023164,2]
[381565379,1756284711824,-500.0,0.00023164,2]
[381565380,1756284711853,-3.98799212,0.00023164,2]
[381565381,1756284711893,-496.01200788,0.00023164,2]
[381565382,1756284711922,-500.0,0.00023164,2]
[381565383,1756284711951,-500.0,0.00023164,2]
[381565384,1756284711980,-500.0,0.00023164,2]
[381565385,1756284712009,-500.0,0.00023164,2]
[381565386,1756284712038,-218.49351897,0.00023164,2]
[381565387,1756284712067,-898.41,0.00023164,2]
[381565388,1756284712095,-480.0,0.00023164,2]
[381565390,1756284712122,-480.0,0.00023164,2]
[381565391,1756284712151,-354.1789463,0.00023164,2]
[381565392,1756284712283,-145.8210537,0.00023164,2]
[381565393,1756284712311,-500.0,0.00023164,2]
[381565394,1756284712339,-165.98008782,0.00023164,2]
[381565395,1756284712366,-184.83564356,0.00023164,2]
[381565396,1756284712393,-500.0,0.00023164,2]
[381565397,1756284712422,-500.0,0.00023164,2]
[381565398,1756284712450,-500.0,0.00023164,2]
[381565399,1756284712477,-518.46093584,0.00023164,2]
[381565400,1756284712504,-500.0,0.00023164,2]
[381565401,1756284712534,-500.0,0.00023164,2]
[381565402,1756284712564,-500.0,0.00023164,2]
[381565404,1756284712592,-469.81455816,0.00023164,2]
[381565405,1756284712858,-30.18544184,0.00023164,2]
[381565406,1756284712888,-500.0,0.00023164,2]
[381565407,1756284712916,-451.1384282,0.00023164,2]
[381565408,1756284712943,-351.70943466,0.00023164,2]
[381565409,1756284712972,-500.0,0.00023164,2]
[381565410,1756284713001,-244.09495954,0.00023164,2]
[381565411,1756284713038,-500.0,0.00023164,2]
[381565413,1756284713067,-500.0,0.00023164,2]
[381565415,1756284713094,-500.0,0.00023164,2]
[381565416,1756284713122,-500.0,0.00023164,2]
[381565417,1756284713151,-500.0,0.00023164,2]
[381565418,1756284713180,-345.75347152,0.00023164,2]
[381565419,1756284713560,-154.24652848,0.00023164,2]
[381565421,1756284713589,-500.0,0.00023164,2]
[381565422,1756284713619,-500.0,0.00023164,2]
[381565423,1756284713647,-500.0,0.00023164,2]
[381565424,1756284713675,-500.0,0.00023164,2]
[381565425,1756284713703,-500.0,0.00023164,2]
[381565426,1756284713731,-408.68375471,0.00023164,2]
[381565427,1756284713760,-500.0,0.00023164,2]
[381565428,1756284713790,-500.0,0.00023164,2]
[381565429,1756284713819,-351.15108803,0.00023164,2]
[381565430,1756284713849,-500.0,0.00023164,2]
[381565431,1756284714029,-248.01100394,0.00023164,2]
[381565432,1756284714059,-500.0,0.00023164,2]
[381565433,1756284714087,-500.0,0.00023164,2]
[381565434,1756284714114,-480.0,0.00023164,2]
[381565435,1756284714142,-196.11524589,0.00023164,2]
[381565436,1756284714169,-500.0,0.00023164,2]
[381565437,1756284714196,-237.40281579,0.00023164,2]
[381565439,1756284714227,-500.0,0.00023164,2]
[381565440,1756284714255,-500.0,0.00023164,2]
[381565441,1756284714284,-500.0,0.00023164,2]
[381565442,1756284714312,-690.76186876,0.00023164,2]
[381565443,1756284714738,-295.42813124,0.00023164,2]
[381565444,1756284714767,-450.0,0.00023164,2]
[381565445,1756284714795,-236.23698014,0.00023164,2]
[381565446,1756284714823,-480.0,0.00023165,2]
[381565447,1756284714853,-1224.8,0.00023165,2]
[381565448,1756284714881,-1224.8,0.00023165,2]
[381565449,1756284714910,-480.0,0.00023165,2]
[381565450,1756284714999,-4422.84,0.00023165,2]
[381565451,1756284715392,-1870.49,0.00023165,2]
[381565454,1756284716463,5000.0,0.00023,2]
[381565457,1756284717858,2628.15144401,0.000199,2]
[381565458,1756284717896,2628.15144375,0.00021627,2]
[381565459,1756284720767,-3740.98,0.00023165,2]
[381565460,1756284720802,-2518.05,0.00023165,2]
[381565461,1756284720839,-1068.44,0.00023166,2]
[381565462,1756284720869,-986.46,0.00023166,2]
[381565463,1756284721128,-854.11,0.00023166,2]
[381565464,1756284721156,-480.0,0.00023166,2]
[381565465,1756284721183,-480.0,0.00023166,2]
[381565466,1756284721214,-1226.92,0.00023166,2]
[381565467,1756284721241,-858.04,0.00023166,2]
[381565468,1756284721268,-480.0,0.00023166,2]
[381565469,1756284721296,-480.0,0.00023166,2]
[381565470,1756284721498,-1515.51,0.00023166,2]
[381565471,1756284721525,-480.0,0.00023166,2]
[381565472,1756284721553,-480.0,0.00023166,2]
[381565473,1756284721582,-2290.98,0.00023166,2]
[381565474,1756284721770,-514.02,0.00023166,2]
[381565475,1756284721797,-281.66179122,0.00023166,2]
[381565476,1756284721827,-1275.97,0.00023166,2]
[381565477,1756284721855,-480.0,0.00023166,2]
[381565478,1756284721882,-860.04,0.00023166,2]
[381565479,1756284721909,-480.0,0.00023166,2]
[381565480,1756284721937,-480.0,0.00023166,2]
[381565481,1756284721965,-479.31641756,0.00023166,2]
[381565482,1756284722252,-297.99358244,0.00023166,2]
[381565483,1756284722299,-523.74,0.00023166,2]
[381565484,1756284722327,-2375.12,0.00023166,2]
[381565485,1756284722357,-1642.14283512,0.00023166,2]
[381565486,1756284722648,-322.01716488,0.00023166,2]
[381565487,1756284722678,-480.0,0.00023166,2]
[381565488,1756284722707,-480.0,0.00023166,2]
[381565489,1756284722884,-480.0,0.00023166,2]
[381565490,1756284722914,-968.46,0.00023166,2]
[381565491,1756284722944,-2021.56567024,0.00023166,2]
[381565492,1756284723069,-495.92432976,0.00023166,2]
[381565493,1756284723098,-708.18,0.00023166,2]
[381565494,1756284723128,-417.15472785,0.000233,7]
[381565495,1756284723159,-216.14835892,0.000233,7]
[381565496,1756284723189,-480.0,0.00023351,2]
[381565497,1756284723222,-727.26,0.00023351,2]
[381565498,1756284723257,-1201.96,0.00023351,2]
[381565499,1756284723340,-2628.15144375,0.00023353,2]
[381565500,1756284723368,-480.0,0.00023438,2]
[381565501,1756284723399,-898.41,0.00023438,2]
[381565502,1756284723427,-480.0,0.00023438,2]
[381565503,1756284723458,-480.0,0.00023438,2]
[381565504,1756284723693,-480.0,0.00023438,2]
[381565505,1756284723722,-986.19,0.00023438,2]
[381565506,1756284723753,-480.0,0.00023439,2]
[381565507,1756284723784,-1224.8,0.00023439,2]
[381565508,1756284723815,-480.0,0.00023439,2]
[381565510,1756284730880,-480.0,0.00023164,2]
[381565511,1756284730911,-480.0,0.00023164,2]
[381565512,1756284730946,-480.0,0.00023164,2]
[381565513,1756284730982,-300.0,0.00023165,2]
[381565514,1756284731018,-480.0,0.00023166,2]
[381565515,1756284731051,-480.0,0.00023166,2]
[381565516,1756284731081,-480.0,0.00023166,2]
[381565517,1756284731114,-1088.97,0.00023166,2]
[381565518,1756284731144,-603.89,0.00023166,2]
[381565519,1756284731268,-254.29,0.00023166,2]
[381565520,1756284731297,-480.0,0.00023351,2]
[381565521,1756284731325,-481.88076988,0.00023438,2]
[381565522,1756284731356,-1200.0,0.00023438,2]
[381565523,1756284731383,-480.0,0.00023438,2]
[381565524,1756284731412,-482.36969083,0.00023438,2]
[381565525,1756284731676,-4422.84,0.00023439,2]
[381565526,1756284732007,-1870.49,0.00023439,2]
[381565527,1756284732103,-3740.98,0.00023439,2]
[381565528,1756284732322,-2518.05,0.00023439,2]
[381565529,1756284732351,-196.483441,0.0002344,7]
[381565530,1756284732378,-1068.44,0.0002344,2]
[381565531,1756284732408,-593.493118,0.0002344,2]
[381565532,1756284732717,3614.69859749,0.00023,2]
[381565533,1756284732897,-1385.30140251,0.00023,2]
[381565534,1756284732926,-1247.076882,0.0002344,2]
[381565535,1756284732956,-480.0,0.0002344,2]
[381565536,1756284732984,-480.0,0.0002344,2]
[381565537,1756284733015,-1226.92,0.0002344,2]
[381565538,1756284733213,-858.04,0.0002344,2]
[381565539,1756284733245,-480.0,0.0002344,2]
[381565540,1756284733273,-480.0,0.0002344,2]
[381565541,1756284733301,-1515.51,0.0002344,2]
[381565542,1756284733329,-480.0,0.0002344,2]
[381565543,1756284733359,-480.0,0.0002344,2]
[381565544,1756284733461,-2290.98,0.0002344,2]
[381565545,1756284733488,-514.02,0.0002344,2]
[381565546,1756284733516,-1275.97,0.0002344,2]
[381565547,1756284733547,-480.0,0.0002344,2]
[381565548,1756284733576,-18.03,0.0002344,2]
[381565549,1756284733739,-480.0,0.00023164,2]
[381565550,1756284733767,-842.01,0.0002344,2]
[381565551,1756284733796,-480.0,0.0002344,2]
[381565552,1756284733826,-480.0,0.0002344,2]
[381565553,1756284733854,-777.31,0.0002344,2]
[381565554,1756284733883,-523.74,0.0002344,2]
[381565555,1756284733911,-458.77,0.0002344,2]
[381565562,1756284897520,10000.0,0.00022142,2]
[381565563,1756284902500,0.01,0.000199,2]
[381565564,1756284902524,2260.30825098,0.000199,2]
[381565565,1756284902609,2260.31825096,0.00021627,2]
[381565574,1756284938944,5000.0,0.000222,2]
[381565576,1756284954828,5000.0,0.000222,2]
[381565577,1756284970363,5000.0,0.000222,2]
[381565578,1756284986089,5000.0,0.000222,2]
[381565579,1756285003122,5000.0,0.000222,2]
[381565580,1756285018931,552.92335994,0.000222,2]
[381565581,1756285060094,10000.01,0.00022131,2]
[381565582,1756285060115,10000.01,0.00022131,2]
[381565583,1756285060139,10000.01,0.00022131,2]
[381565584,1756285060161,10000.01,0.00022131,2]
[381565585,1756285060183,5144.7838044,0.00022131,2]
[381565586,1756285060680,4855.2261956,0.00022131,2]
[381565587,1756285060702,1894.8967196,0.00022131,2]
[381565588,1756285072052,4936.67812242,0.000222,2]
[381565589,1756285080060,5000.0,0.000222,2]
[381565590,1756285085636,2698.35578812,0.000199,2]
[381565591,1756285085765,2698.3557881,0.00021627,2]
[381565592,1756285088316,4603.29842378,0.000222,2]
[381565593,1756285088338,396.70157622,0.000222,2]
[381565594,1756285096365,5000.0,0.000222,2]
[381565595,1756285097823,169.20007616,0.00022111,2]
[381565596,1756285104673,324.05160457,0.000222,2]
[381565597,1756285115425,5000.0,0.000222,2]
[381565598,1756285131758,5000.0,0.000222,2]
[381565599,1756285147208,5000.0,0.000222,2]
[381565600,1756285162483,5000.0,0.000222,2]
[381565601,1756285169665,666.0,0.00022157,2]
[381565602,1756285177932,5000.0,0.000222,2]
[381565603,1756285197055,169.20007616,0.00022111,2]
[381565604,1756285212300,5000.0,0.000222,2]
[381565605,1756285228413,5000.0,0.000222,2]
[381565606,1756285244026,5000.0,0.000222,2]
[381565610,1756285258718,9501.65557397,0.00031448,60]
[381565611,1756285260104,5000.0,0.000222,2]
[381565612,1756285270280,2799.72199948,0.000199,2]
[381565613,1756285270398,2799.72199941,0.00021627,2]
[381565614,1756285274136,1792.4311978,0.00021612,2]
[381565615,1756285276144,5000.0,0.000222,2]
[381565617,1756285292393,5000.0,0.000222,2]
[381565618,1756285301919,3473.33693358,0.000222,2]
[381565619,1756285310070,4953.89342967,0.000222,2]
[381565620,1756285311597,-1034.462344,0.00022211,2]
[381565621,1756285311632,-748.99917642,0.00022211,2]
[381565622,1756285311663,-177.47654682,0.00022213,69]
[381565623,1756285311696,-1209.07928214,0.000223,2]
[381565624,1756285311727,-300.0,0.00022312,2]
[381565625,1756285311759,-1200.0,0.00022313,2]
[381565626,1756285311959,-4952.62981737,0.00022313,2]
[381565627,1756285312093,-253.5432883,0.00022314,2]
[381565629,1756285331607,-300.0,0.00022989,2]
[381565630,1756285331638,-1200.0,0.00022989,2]
[381565631,1756285333305,-5071.86223458,0.0002299,2]
[381565632,1756285333467,-10000.01,0.0002299,2]
[381565633,1756285333598,-10000.01,0.0002299,2]
[381565634,1756285333943,-10000.01,0.0002299,2]
[381565635,1756285351685,-10000.01,0.0002299,2]
[381565636,1756285351851,-10000.01,0.0002299,2]
[381565637,1756285352022,-10000.01,0.0002299,2]
[381565638,1756285352221,-4211.15531262,0.0002299,2]
[381565639,1756285352247,-1577.69937476,0.0002299,2]
[381565640,1756285352401,-1975.008616,0.00023054,2]
[381565641,1756285352429,-1109.4,0.00023055,3]
[381565642,1756285352456,-554.7,0.00023055,3]
[381565643,1756285352559,-2721.792768,0.00023065,2]
[381565644,1756285352625,-10000.01,0.00023065,2]
[381565645,1756285352812,-10000.01,0.00023065,2]
[381565646,1756285353025,-10000.01,0.00023065,2]
[381565647,1756285353187,-10000.01,0.00023065,2]
[381565648,1756285353447,-3090.24163278,0.00023065,2]
[381565649,1756285353483,-3819.52673444,0.00023065,2]
[381565651,1756285443900,184.95486452,0.00021815,5]
[381565652,1756285456505,2613.07386629,0.000199,2]
[381565653,1756285456596,2613.07386611,0.00021627,2]
[381565663,1756285466539,725.950956,0.00013699,2]
[381565664,1756285466744,725.950956,0.00020187,2]
[381565665,1756285487211,157.9026632,0.00021995,2]
[381565666,1756285488322,706.48708,0.00021995,2]
[381565704,1756285543741,1000.0,0.00021989,2]
[381565708,1756285639642,2641.81518226,0.000199,2]
[381565709,1756285639719,2641.81518222,0.00021627,2]
[381565710,1756285677614,324.478956,0.00022162,2]
[381565711,1756285677975,470.90948955,0.000222,2]
[381565712,1756285680776,153.52,0.00016094,2]
[381565713,1756285681116,153.51,0.00016094,2]
[381565714,1756285743631,184.95486451,0.0002186,5]
[381565732,1756285821802,194.59513748,0.000199,2]
[381565733,1756285821828,2467.18963519,0.000199,2]
[381565734,1756285821884,2661.7847724,0.00021627,2]
[381565780,1756285833866,999.999999,0.00015,2]
[381565790,1756285836517,1143.362553,0.00021864,2]
[381565800,1756285838407,-1127.6,0.00022747,2]
[381565807,1756285838462,-1005.44069438,0.00022747,2]
[381565809,1756285838471,-177.47654682,0.00022748,71]
[381565811,1756285838481,-300.0,0.00022845,2]
[381565813,1756285838491,-300.0,0.00022845,2]
[381565815,1756285838501,-300.0,0.00022845,2]
[381565817,1756285838511,-300.0,0.00022845,2]
[381565819,1756285838520,-1200.0,0.00022845,2]
[381565821,1756285838530,-1200.0,0.00022846,2]
[381565823,1756285838539,-480.0,0.00022846,2]
[381565825,1756285838548,-480.0,0.00022846,2]
[381565827,1756285838557,-480.0,0.00022846,2]
[381565829,1756285838567,-480.0,0.00022846,2]
[381565831,1756285838576,-492.90621585,0.00022846,2]
[381565834,1756285838585,-480.0,0.00022846,2]
[381565836,1756285838595,-190.7527648,0.00022846,2]
[381565839,1756285838604,-1046.68,0.00022846,2]
[381565842,1756285838615,-480.0,0.00022846,2]
[381565845,1756285838624,-480.0,0.00022846,2]
[381565848,1756285838633,-1304.71,0.00022846,2]
[381565851,1756285838643,-482.47693872,0.00022846,2]
[381565853,1756285838652,-500.0,0.00022847,2]
[381565856,1756285838661,-185.16204565,0.00022847,2]
[381565859,1756285838670,-500.0,0.00022847,2]
[381565862,1756285838679,-500.0,0.00022847,2]
[381565863,1756285838689,-500.0,0.00022847,2]
[381565865,1756285838698,-35.42973246,0.00022847,2]
[381565868,1756285838714,-464.57026754,0.00022847,2]
[381565869,1756285838723,-500.0,0.00022847,2]
[381565870,1756285838733,-500.0,0.00022847,2]
[381565871,1756285838742,-500.0,0.00022847,2]
[381565872,1756285838751,-500.0,0.00022847,2]
[381565873,1756285838761,-500.0,0.00022847,2]
[381565874,1756285838770,-500.0,0.00022847,2]
[381565875,1756285838780,-500.0,0.00022847,2]
[381565876,1756285838789,-500.0,0.00022847,2]
[381565877,1756285838798,-545.30357516,0.00022847,2]
[381565878,1756285838807,-500.0,0.00022847,2]
[381565879,1756285838816,-500.0,0.00022847,2]
[381565880,1756285838826,-11460.18911567,0.00022848,2]
[381565881,1756285838835,-1046.68,0.00022885,2]
[381565882,1756285838844,-1046.68,0.00022886,2]
[381565883,1756285838854,-16316.6528417,0.00022887,2]
[381565884,1756285838864,-480.0,0.00022987,2]
[381565885,1756285838874,-980.51,0.00022987,2]
[381565886,1756285838882,-480.0,0.00022987,2]
[381565887,1756285838892,-1507.06,0.00022987,2]
[381565888,1756285838902,-2202.7,0.00022987,2]
[381565889,1756285838910,-3390.88,0.00022987,2]
[381565890,1756285838919,-1071.7,0.00022987,2]
[381565891,1756285838929,-1046.68,0.00022988,2]
[381565892,1756285838938,-480.0,0.00022989,2]
[381565893,1756285838947,-480.0,0.00022989,2]
[381565894,1756285838956,-504.45,0.00022989,2]
[381565895,1756285838965,-480.0,0.00022989,2]
[381565896,1756285838974,-480.0,0.00022989,2]
[381565897,1756285838983,-1844.79,0.00022989,2]
[381565898,1756285838993,-695.09,0.00022989,2]
[381565899,1756285839011,-626.12,0.00022989,2]
[381565900,1756285839023,-480.0,0.00022989,2]
[381565901,1756285839040,-4054.27,0.00022989,2]
[381565902,1756285839050,-7453.14,0.00022989,2]
[381565903,1756285839059,-1277.04,0.00022989,2]
[381565904,1756285839068,-630.33,0.00022989,2]
[381565905,1756285839080,-2352.9,0.00022989,2]
[381565906,1756285839090,-480.0,0.00022989,2]
[381565907,1756285839099,-829.42,0.00022989,2]
[381565908,1756285839108,-1288.51,0.00022989,2]
[381565909,1756285839119,-1046.68,0.00023014,2]
[381565910,1756285839128,-1046.68,0.00023014,2]
[381565911,1756285839137,-1046.68,0.00023014,2]
[381565912,1756285839146,-56930.282164,0.00023015,2]
[381565913,1756285839155,-931.4087579,0.00023015,2]
[381565914,1756285839165,-1046.68,0.0002306,2]
[381565915,1756285839175,-5017.61651198,0.00023061,2]
[381565916,1756285839184,-716.41,0.00023063,2]
[381565917,1756285839193,-1360.87677997,0.00023065,2]
[381565918,1756285839202,-480.0,0.0002312,2]
[381565919,1756285839211,-480.0,0.0002312,2]
[381565920,1756285839220,-480.0,0.0002312,2]
[381565921,1756285839229,-480.0,0.0002312,2]
[381565922,1756285839238,-481.88664325,0.0002312,2]
[381565923,1756285839247,-480.0,0.0002312,2]
[381565924,1756285839256,-480.0,0.0002312,2]
[381565925,1756285839264,-1304.71,0.0002312,2]
[381565926,1756285839274,-500.0,0.00023121,2]
[381565927,1756285839283,-5017.61651194,0.00023131,2]
[381565928,1756285839292,-597.05,0.00023143,3]
[381565929,1756285839302,-298.53,0.00023143,3]
[381565930,1756285839311,-895.6,0.00023143,3]
[381565931,1756285839320,-1046.68,0.00023151,2]
[381565932,1756285839329,-1046.68,0.00023151,2]
[381565933,1756285839338,-151.0,0.00023152,2]
[381565934,1756285839348,-156.587,0.00023152,2]
[381565935,1756285839357,-198.99657192,0.00023152,2]
[381565936,1756285839367,-2524.82941417,0.00023152,2]
[381565937,1756285839377,-1046.68,0.00023152,2]
[381565938,1756285839386,-1046.68,0.00023152,2]
[381565939,1756285839396,-1046.68,0.00023152,2]
[381565940,1756285839405,-254.39428097,0.00023152,2]
[381565941,1756285839415,-259.10691283,0.00023152,2]
[381565942,1756285839424,-151.0,0.00023152,2]
[381565943,1756285839433,-151.0,0.00023152,2]
[381565944,1756285839442,-500.0,0.00023152,2]
[381565945,1756285839451,-250.0,0.00023152,2]
[381565946,1756285839460,-500.0,0.00023152,2]
[381565947,1756285839470,-151.0,0.00023152,2]
[381565948,1756285839479,-300.0,0.00023152,2]
[381565949,1756285839488,-151.0,0.00023152,2]
[381565950,1756285839497,-151.0,0.00023152,2]
[381565951,1756285839507,-300.0,0.00023152,2]
[381565952,1756285839515,-151.0,0.00023152,2]
[381565953,1756285839525,-151.0,0.00023152,2]
[381565954,1756285839534,-151.0,0.00023152,2]
[381565955,1756285839544,-300.0,0.00023152,2]
[381565956,1756285839553,-151.0,0.00023152,2]
[381565957,1756285839562,-151.0,0.00023152,2]
[381565958,1756285839573,-151.0,0.00023152,2]
[381565959,1756285839582,-151.0,0.00023152,2]
[381565960,1756285839591,-300.0,0.00023152,2]
[381565961,1756285839601,-151.0,0.00023152,2]
[381565962,1756285839610,-151.0,0.00023152,2]
[381565963,1756285839622,-151.0,0.00023152,2]
[381565964,1756285839631,-151.0,0.00023152,2]
[381565965,1756285839641,-300.0,0.00023152,2]
[381565966,1756285839650,-151.0,0.00023152,2]
[381565967,1756285839659,-151.0,0.00023152,2]
[381565968,1756285839667,-151.0,0.00023152,2]
[381565969,1756285839677,-151.0,0.00023152,2]
[381565970,1756285839686,-300.0,0.00023152,2]
[381565971,1756285839695,-151.0,0.00023152,2]
[381565972,1756285839704,-151.0,0.00023152,2]
[381565973,1756285839713,-151.0,0.00023152,2]
[381565974,1756285839723,-151.0,0.00023152,2]
[381565975,1756285839732,-201.93286099,0.00023152,2]
[381565976,1756285839741,-151.0,0.00023152,2]
[381565977,1756285839751,-151.0,0.00023152,2]
[381565978,1756285839760,-300.0,0.00023152,2]
[381565979,1756285839769,-151.0,0.00023152,2]
[381565980,1756285839779,-151.0,0.00023152,2]
[381565981,1756285839788,-300.0,0.00023152,2]
[381565982,1756285839797,-151.0,0.00023152,2]
[381565983,1756285839807,-151.0,0.00023152,2]
[381565984,1756285839816,-151.0,0.00023152,2]
[381565985,1756285839826,-151.0,0.00023152,2]
[381565986,1756285839835,-151.0,0.00023152,2]
[381565987,1756285839845,-260.74186169,0.00023152,2]
[381565988,1756285839854,-300.0,0.00023152,2]
[381565989,1756285839865,-151.0,0.00023152,2]
[381565990,1756285839876,-300.0,0.00023152,2]
[381565991,1756285839885,-500.0,0.00023152,2]
[381565992,1756285839895,-151.0,0.00023152,2]
[381565993,1756285839904,-300.0,0.00023152,2]
[381565994,1756285839914,-151.0,0.00023152,2]
[381565995,1756285839923,-151.0,0.00023152,2]
[381565997,1756285839933,-300.0,0.00023152,2]
[381565999,1756285839942,-500.0,0.00023152,2]
[381566001,1756285839952,-151.0,0.00023152,2]
[381566002,1756285839961,-300.0,0.00023152,2]
[381566003,1756285839971,-151.0,0.00023152,2]
[381566004,1756285839980,-151.0,0.00023152,2]
[381566005,1756285839990,-300.0,0.00023152,2]
[381566006,1756285839999,-500.0,0.00023152,2]
[381566007,1756285840008,-151.0,0.00023152,2]
[381566008,1756285840018,-300.0,0.00023152,2]
[381566009,1756285840027,-151.0,0.00023152,2]
[381566010,1756285840037,-151.0,0.00023152,2]
[381566011,1756285840046,-544.44515153,0.00023152,2]
[381566012,1756285840056,-151.0,0.00023152,2]
[381566013,1756285840066,-300.0,0.00023152,2]
[381566014,1756285840076,-500.0,0.00023152,2]
[381566015,1756285840085,-151.0,0.00023152,2]
[381566016,1756285840101,-151.0,0.00023152,2]
[381566017,1756285840110,-300.0,0.00023152,2]
[381566018,1756285840120,-500.0,0.00023152,2]
[381566019,1756285840130,-300.0,0.00023152,2]
[381566020,1756285840139,-151.0,0.00023152,2]
[381566021,1756285840149,-151.0,0.00023152,2]
[381566022,1756285840159,-500.0,0.00023152,2]
[381566023,1756285840170,-300.0,0.00023152,2]
[381566024,1756285840180,-500.0,0.00023152,2]
[381566025,1756285840191,-151.0,0.00023152,2]
[381566026,1756285840200,-300.0,0.00023152,2]
[381566027,1756285840209,-500.0,0.00023152,2]